Workbook

Sheet 1. Forside
A1: Afløb Ballerup A/S
D8: Bilag A
D13: Indholdsfortegnelse
C16: Fane nr. 2 | D16: Samlet prisloft
C17: Fane nr. 3 | D17: Driftsomkostninger
C18: Fane nr. 4 | D18: Historiske investeringer
C19: Fane nr. 5 | D19: Gennemførte investeringer
C20: Fane nr. 6 | D20: Korrektion investeringer
C21: Fane nr. 7 | D21: Planlagte investeringer
C22: Fane nr. 8 | D22: 1:1 omkostninger
C23: Fane nr. 9 | D23: Miljø- og servicemål
C24: Fane nr. 10 | D24: Klimatilpasning
C25: Fane nr. 11 | D25: Nettofinansielle poster
C26: Fane nr. 12 | D26: Over- eller underdækning
C27: Fane nr. 13 | D27: Kontrol med indtægtsrammen og oversigt over ekstraordinære effektiviseringsgevinster

Sheet 2. Samlet prisloft
A1: ='1. Forside'!A1 -> Afløb Ballerup A/S
B4: Fane 2. Samlet prisloft for 2015
B6: Driftsomkostninger
B7: Korrigerede driftsomkostninger i prisloftet for 2014 | C7: ='3. Driftsomkostninger'!C19 -> 12727655.34 | D7: kr.
B8: Bortfald af væsentlige omkostninger | C8: =-'3. Driftsomkostninger'!C24 -> 0 | D8: kr.
B9: Korrektion for periodevise driftsomkostninger | C9: ='3. Driftsomkostninger'!C30 -> -2485825 | D9: kr.
B10: Korrektion for prisudviklingen 2014-2015 | C10: ='3. Driftsomkostninger'!C36 -> 8193.464274 | D10: kr.
B11: Forhøjelse til effektivt niveau iht. benchmarkingen | C11: ='3. Driftsomkostninger'!C42 -> 0 | D11: kr.
B12: Korrektion for generelt effektiviseringskrav | C12: =-'3. Driftsomkostninger'!C48 -> -45064.05351 | D12: kr.
B13: Korrektion for individuelt effektiviseringskrav | C13: =-'3. Driftsomkostninger'!C57 -> -512091.5171 | D13: kr.
B14: Driftsomkostninger i alt | C14: =SUM(C7:C13) -> 9692868.236 | D14: kr. | E14: =C14 -> 9692868.236 | F14: kr.
B15: Investeringer
B16: Tillæg for historiske investeringer | C16: ='4. Historiske investeringer'!C9 -> 23596492.11 | D16: kr.
B17: Tillæg for gennemførte investeringer i 2011-2013 | C17: ='5. Gennemførte investeringer'!F46 -> 2461336.473 | D17: kr.
B18: Korrektion af tillæg for planlagte investeringer vedrørende 2013 | C18: ='6. Korrektion investeringer'!C10 -> 585086.02 | D18: kr.
B19: Tillæg for planlagte investeringer i 2014 og 2015 | C19: ='7. Planlagte investeringer'!F37 -> 1468834.667 | D19: kr.
B20: Investeringstillæg i alt | C20: =SUM(C16:C19) -> 28111749.27 | D20: kr. | E20: =C20 -> 28111749.27 | F20: kr.
B21: Øvrige omkostninger mv.
B22: Tillæg for 1:1 omkostninger i 2015 | C22: ='8. 1-1 omkostninger'!C13 -> 24881184 | D22: kr.
B23: Tillæg vedr. revisorerklæringer og DANVA/FVD-kontingent | C23: ='8. 1-1 omkostninger'!C19 -> 105000 | D23: kr.
B24: Korrektion ift. faktiske 1:1 omkostninger i 2013 | C24: ='8. 1-1 omkostninger'!C25 -> -3323219 | D24: kr.
B25: Tillæg for driftsomkostninger til miljø- og servicemål i 2015 | C25: ='9. Miljø- og servicemål'!C8 -> 0 | D25: kr.
B26: Korrektion ift. faktiske driftsomkostninger til miljø- og servicemål i 2013 | C26: ='9. Miljø- og servicemål'!C14 -> 0 | D26: kr.
B27: Tillæg for driftsomkostninger til medfinansiering af klimatilpasningsprojekter i 2015 | C27: ='10. Klimatilpasning'!C9 -> 0 | D27: kr.
B28: Korrektion ift. faktiske omkostninger til medfinansiering af klimatilpasningsprojekter i 2013 | C28: ='10. Klimatilpasning'!C15 -> -326368 | D28: kr.
B29: Tillæg/fradrag for nettofinansielle poster i 2015 | C29: ='11. Nettofinansielle poster'!C9 -> -1500000 | D29: kr.
B30: Korrektion ift. faktiske nettofinansielle poster i 2013 | C30: ='11. Nettofinansielle poster'!C15 -> -830323 | D30: kr.
B31: Øvrige omkostninger mv. i alt | C31: =SUM(C22:C30) -> 19006274 | D31: kr. | E31: =C31 -> 19006274 | F31: kr.
B32: Historisk over- eller underdækning
B33: Tillæg/fradrag for over- eller underdækning til og med 2010 | C33: ='12. Over- eller underdækning'!C11 -> -3283159.444 | D33: kr. | E33: =C33 -> -3283159.444 | F33: kr.
B34: Korrektion i forhold til tidligere indtægtsramme
B35: Korrektion for overholdelse af indtægtsramme i prisloft 2013 | C35: ='13. Kontrol med indtægtsrammen'!E27 -> -632970.7673 | D35: kr. | E35: =C35 -> -632970.7673 | F35: kr.
B36: Samlet prisloft
B37: Indtægtsramme i 2015 | E37: =SUM(E14:E35) -> 52894761.29 | F37: kr.
B38: Debiteret vandmængde i 2013 | E38: 2733547 | F38: m3
B39: Prisloft 2015 | E39: =E37/E38 -> 19.35022931 | F39: kr./m3

Sheet 3. Driftsomkostninger
A1: ='1. Forside'!A1 -> Afløb Ballerup A/S
B4: Fane 3. Driftsomkostninger
B6: Driftsomkostningerne i prisloftet for 2014
B7: Korrigerede driftsomkostninger i prisloftet for 2013 (DOiPL 2013) | C7: 13189280.14 | D7: kr.
B8: Tillæg i henhold til § 8, stk. 2, pkt. 1 | C8: 0 | D8: kr.
B9: Prisfremskrivning 1,5 pct. | C9: =0.015*SUM(C7:C8) -> 197839.2021 | D9: kr.
B10: Generelt effektiviseringskrav (0 pct.) | C10: 0 | D10: kr.
B11: Individuelt effektiviseringskrav | C11: -659464 | D11: kr.
B12: Driftsomkostningerne i prisloftet for 2014 (DOiPL 2014) | C12: =SUM(C7:C11) -> 12727655.34 | D12: kr.
B15: Forskel i § 8, stk. 2, pkt. 1 - tillæg
B16: Godkendt tillæg i PL2014 prisfremskrevet til 2014-niveau | C16: =C8*1.015 -> 0 | D16: kr.
B17: Godkendt tillæg i PL2015 prisfremskrevet til 2014-niveau | C17: 0 | D17: kr.
B18: Forskel | C18: =C17-C16 -> 0 | D18: kr.
B19: Korrigerede driftsomkostninger i prisloftet for 2014 | C19: =C12+C18 -> 12727655.34 | D19: kr.
B22: Korrektion for forventet bortfald af væsentlige omkostninger
B23: Selskabets indberettede bortfald af væsentlige omkostninger inden 2015 | C23: 0 | D23: kr.
B24: Korrektion for forventet bortfald | C24: =SUM(C23:C23) -> 0 | D24: kr.
B27: Korrektion for periodevise driftsomkostninger
B28: Del af godkendt tillæg i PL2013 vedrørende omkostninger i 2013 | C28: 7916508 | D28: kr.
B29: Faktisk udgift til periodevise driftsomkostninger i 2013 | C29: 5430683 | D29: kr.
B30: Korrektion for periodevise driftsomkostninger | C30: =C29-C28 -> -2485825 | D30: kr.
B33: Korrektion for prisudviklingen fra 2014-2015
B34: Driftsomkostningerne i prisloftet for 2014 | C34: =C19-C24+C30 -> 10241830.34 | D34: kr.
B35: Prisudvikling 2014 - 2015 | C35: 0.08 | D35: pct.
B36: Korrektion for prisudvikling | C36: =C34*(C35/100) -> 8193.464274 | D36: kr.
B39: Eventuel forhøjelse til effektivt niveau iht. benchmarkingen
B40: Selskabets effektive driftsomkostninger iht. benchmarkingen | C40: 6526094.294 | D40: kr.
B41: Selskabets pristalskorrigerede driftsomkostninger i 2015-niveau | C41: =C34+C36 -> 10250023.81 | D41: kr.
B42: Eventuel forhøjelse til effektivt niveau | C42: =IF(C41>C40,0,C40-C41) -> 0 | D42: kr.
B45: Korrektion for generelt effektiviseringskrav
B46: Driftsomkostningerne i prisloftet for 2014 | C46: =C34 -> 10241830.34 | D46: kr.
B47: Generelt effektiviseringskrav | C47: 0.44 | D47: pct.
B48: Endeligt generelt effektiviseringskrav | C48: =C46*(C47/100) -> 45064.05351 | D48: kr.
B51: Korrektion for individuelt effektiviseringskrav
B52: Rå effektiviseringspotentiale | C52: 3715736.048 | D52: kr.
B53: Effektiviseringspotentiale efter eventuel korrektion for særlige forhold | C53: 3715736.048 | D53: kr.
B54: Effektiviseringspotentiale efter forsigtighedshensyn | C54: 2399660.849 | D54: kr.
B55: Effektiviseringspotentiale efter eventuel korrektion for sammensætning af signifikante costdrivere | C55: 2399660.849 | D55: kr.
B56: Umiddelbart effektiviseringskrav | C56: =C55/4 -> 599915.2123 | D56: kr.
B57: Endeligt individuelt effektiviseringskrav | C57: =IF(C56>0.05*C34,0.05*C34,IF(C56<0.01*C34,0,C56)) -> 512091.5171 | D57: kr.

Sheet 4. Historiske investeringer
A1: ='3. Driftsomkostninger'!A1 -> Afløb Ballerup A/S
B4: Fane 4. Historiske investeringer
B6: Tillæg for historiske investeringer
B7: Værdi af selskabets materielle anlægsaktiver pr. 1. januar 2010 | C7: 832535368.3 | D7: kr.
B8: Den årlige standardafskrivning på de materielle anlægsaktiver iht. POLKA | C8: 23596492.11 | D8: kr.
B9: Tillæg i alt i 2015 | C9: =C8 -> 23596492.11 | D9: kr.

Sheet 5. Gennemførte investeringer
A1: ='4. Historiske investeringer'!A1 -> Afløb Ballerup A/S
B4: Fane 5. Gennemførte investeringer i 2010 - 2013
B6: Tillæg for gennemførte investeringer i 2013
B7: Beskrivelse af investeringen | C7: Årstal | D7: Std. levetid (år) | E7: Anskaffelses-pris (kr.) | F7: Afskrivning
B8: Ø 200 mm < Ledningsnet = Ø 500 mm | C8: 2013 | D8: 75 | E8: 4533383 | F8: =E8/D8 -> 60445.10667 | G8: kr.
B9: Brønde | C9: 2013 | D9: 75 | E9: 503709 | F9: 6716.12 | G9: kr.
B10: Strømpeforing Ø 200 mm < Ledningsnet = Ø 500 mm | C10: 2013 | D10: 50 | E10: 109762 | F10: 2195.24 | G10: kr.
B11: Installationer "ingen eller faste riste" (mindre end 7 m2) | C11: 2013 | D11: 20 | E11: 223795 | F11: 11189.75 | G11: kr.
B12: Installationer "mekaniske riste og SRO" Miljøklasse A. (7-20 m2) - Mek/EL | C12: 2013 | D12: 20 | E12: 111898 | F12: 5594.9 | G12: kr.
B13: Brønde | C13: 2013 | D13: 75 | E13: 1902261 | F13: 25363.48 | G13: kr.
B14: Ø 200 mm < Ledningsnet = Ø 500 mm | C14: 2013 | D14: 75 | E14: 344291 | F14: 4590.546667 | G14: kr.
B15: Brønde | C15: 2013 | D15: 75 | E15: 229527 | F15: 3060.36 | G15: kr.
B16: Forsinkelsesbassiner, lukkede med automatisk rensning og SRO Miljøklasse A (1.000-3.000 m3) - Konstruktioner | C16: 2013 | D16: 75 | E16: 8377752 | F16: 111703.36 | G16: kr.
B17: Forsinkelsesbassiner, lukkede med automatisk rensning og SRO Miljøklasse A (1.000-3.000 m3) - Mek/EL | C17: 2013 | D17: 20 | E17: 1262401 | F17: 63120.05 | G17: kr.
B18: Forsinkelsesbassiner, lukkede med automatisk rensning og SRO Miljøklasse A (1.000-3.000 m3) - SRO | C18: 2013 | D18: 10 | E18: 114764 | F18: 11476.4 | G18: kr.
B19: Kælder (7 - 20 m2) | C19: 2013 | D19: 75 | E19: 688582 | F19: 9181.093333 | G19: kr.
B20: Installationer "mekaniske riste og SRO" Miljøklasse A. (7-20 m2) - Mek/EL | C20: 2013 | D20: 20 | E20: 344291 | F20: 17214.55 | G20: kr.
B21: Installationer "mekaniske riste og SRO" Miljøklasse A. (7-20 m2) - SRO | C21: 2013 | D21: 10 | E21: 114764 | F21: 11476.4 | G21: kr.
B22: Strømpeforing Ø 200 mm < Ledningsnet = Ø 500 mm | C22: 2013 | D22: 50 | E22: 44250 | F22: 885 | G22: kr.
B23: Strømpeforing Ø 800 mm < Ledningsnet = Ø 1000 mm | C23: 2013 | D23: 50 | E23: 4731999 | F23: 94639.98 | G23: kr.
B24: Strømpeforing Ø 800 mm < Ledningsnet = Ø 1000 mm | C24: 2013 | D24: 50 | E24: 1039606 | F24: 20792.12 | G24: kr.
B25: Pumpestationer i brønde (< 6,25 m2), Mek/EL | C25: 2013 | D25: 20 | E25: 291364 | F25: 14568.2 | G25: kr.
B26: Pumpestationer i brønde (< 6,25 m2), SRO | C26: 2013 | D26: 10 | E26: 40500 | F26: 4050 | G26: kr.
B27: Pumpestationer m. overbygning (< 20 m2), Mek/EL | C27: 2013 | D27: 20 | E27: 110462 | F27: 5523.1 | G27: kr.
B28: Pumpestationer i brønde (< 6,25 m2), Konstruktioner | C28: 2013 | D28: 50 | E28: 303292 | F28: 6065.84 | G28: kr.
B29: Pumpestationer i brønde (< 6,25 m2), Mek/EL | C29: 2013 | D29: 20 | E29: 269592 | F29: 13479.6 | G29: kr.
B30: Pumpestationer i brønde (< 6,25 m2), SRO | C30: 2013 | D30: 10 | E30: 101097 | F30: 10109.7 | G30: kr.
B31: Strømpeforing = Ø 200 mm | C31: 2013 | D31: 50 | E31: 16480 | F31: 329.6 | G31: kr.
B32: Installationer "mekaniske riste og SRO" Miljøklasse A. (7-20 m2) - SRO | C32: 2013 | D32: 10 | E32: 39836 | F32: 3983.6 | G32: kr.
B33: Ø 200 mm < Ledningsnet = Ø 500 mm | C33: 2013 | D33: 75 | E33: 280620 | F33: 3741.6 | G33: kr.
B34: Stik | C34: 2013 | D34: 75 | E34: 70118 | F34: 934.9066667 | G34: kr.
B35: Stik | C35: 2013 | D35: 75 | E35: 35617 | F35: 474.8933333 | G35: kr.
B36: Oversvømmelseskort | C36: 2013 | D36: 5 | E36: 719089 | F36: 143817.8 | G36: kr.
B37: Strømpeforing Ø 200 mm < Ledningsnet = Ø 500 mm | C37: 2013 | D37: 50 | E37: 72665 | F37: 1453.3 | G37: kr.
B38: Stik | C38: 2013 | D38: 75 | E38: 140600 | F38: 1874.666667 | G38: kr.
B39: Stik | C39: 2013 | D39: 75 | E39: 82536 | F39: 1100.48 | G39: kr.
B40: Indløb-/udløbsarrangement | C40: 2013 | D40: 75 | E40: 1947526 | F40: 25967.01333 | G40: kr.
B41: Køretøjer, små lastvogne (< 3.500 kg.) | C41: 2013 | D41: 5 | E41: 517195 | F41: 103439 | G41: kr.
B42: Køretøjer, små lastvogne (< 3.500 kg.) | C42: 2013 | D42: 5 | E42: 355001 | F42: 71000.2 | G42: kr.
B43: Administrationbygninger | C43: 2013 | D43: 75 | E43: 684829 | F43: 9131.053333 | G43: kr.
B44: Tillæg for 2013 | F44: =SUM(F8:F43) -> 880689.01 | G44: kr.
B45: Tillæg for 2010 - 2012 | F45: 1580647.463 | G45: kr.
B46: Samlet tillæg for gennemførte investeringer | F46: =F44+F45 -> 2461336.473 | G46: kr.

Sheet 6. Korrektion investeringer
A1: ='5. Gennemførte investeringer'!A1 -> Afløb Ballerup A/S
B4: Fane 6. Korrektion af tillæg for planlagte investeringer
B6: Korrektion af tillæg for planlagte investeringer vedr. 2013
B7: Tillæg for planlagte investeringer i 2013 i prisloft 2013 | C7: 614000 | D7: kr.
B8: Tillæg for planlagte investeringer i 2013 i prisloft 2014 | C8: 562292 | D8: kr.
B9: Selskabets faktiske afskrivninger på gennemførte investeringer i 2013 | C9: ='5. Gennemførte investeringer'!F44 -> 880689.01 | D9: kr.
B10: Korrektion af tillæg for planlagte investeringer vedr. 2013 | C10: =C9-C7+C9-C8 -> 585086.02 | D10: kr.

Sheet 7. Planlagte investeringer
A1: ='6. Korrektion investeringer'!A1 -> Afløb Ballerup A/S
B4: Fane 7. Planlagte investeringer
B6: Tillæg for planlagte investeringer i 2014 og 2015
B7: Beskrivelse af investeringen | C7: Årstal | D7: Std. levetid (år) | E7: Anskaffelses-pris (kr.) | F7: Afskrivning
B8: Strømpeforing Ø 200 mm < Ledningsnet = Ø 500 mm | C8: 2014 | D8: 50 | E8: 2500000 | F8: =E8/D8 -> 50000 | G8: kr.
B9: Brønde | C9: 2014 | D9: 75 | E9: 1500000 | F9: =E9/D9 -> 20000 | G9: kr.
B10: Ø 200 mm < Ledningsnet = Ø 500 mm | C10: 2014 | D10: 75 | E10: 300000 | F10: 4000 | G10: kr.
B11: Strømpeforing Ø 200 mm < Ledningsnet = Ø 500 mm | C11: 2014 | D11: 50 | E11: 1100000 | F11: 22000 | G11: kr.
B12: Ø 200 mm < Ledningsnet = Ø 500 mm | C12: 2014 | D12: 75 | E12: 3000000 | F12: 40000 | G12: kr.
B13: Installationer "ingen eller faste riste" (mindre end 7 m2) | C13: 2014 | D13: 20 | E13: 1500000 | F13: 75000 | G13: kr.
B14: Ø 200 mm < Ledningsnet = Ø 500 mm | C14: 2014 | D14: 75 | E14: 2919000 | F14: 38920 | G14: kr.
B15: Køretøjer, store lastvogne (> 3.500 kg.) | C15: 2014 | D15: 5 | E15: 3500000 | F15: 700000 | G15: kr.
B16: Ø 200 mm < Ledningsnet = Ø 500 mm | C16: 2014 | D16: 75 | E16: 3300000 | F16: 44000 | G16: kr.
B17: Stik | C17: 2014 | D17: 75 | E17: 200000 | F17: 2666.666667 | G17: kr.
B18: Forsinkelsesbassiner, lukkede med automatisk rensning og SRO Miljøklasse A (1.000-3.000 m3) - Mek/EL | C18: 2014 | D18: 20 | E18: 500000 | F18: 25000 | G18: kr.
B19: Kælder (< 7 m2) | C19: 2014 | D19: 75 | E19: 3000000 | F19: 40000 | G19: kr.
B20: Installationer "ingen eller faste riste" (mindre end 7 m2) | C20: 2014 | D20: 20 | E20: 200000 | F20: 10000 | G20: kr.
B21: Ø 200 mm < Ledningsnet = Ø 500 mm | C21: 2014 | D21: 75 | E21: 1000000 | F21: 13333.33333 | G21: kr.
B22: Brønde | C22: 2014 | D22: 75 | E22: 250000 | F22: 3333.333333 | G22: kr.
B23: Stik | C23: 2014 | D23: 75 | E23: 250000 | F23: 3333.333333 | G23: kr.
B24: Installationer "ingen eller faste riste" (mindre end 7 m2) | C24: 2014 | D24: 20 | E24: 1250000 | F24: 62500 | G24: kr.
B25: Kælder (< 7 m2) | C25: 2014 | D25: 75 | E25: 250000 | F25: 3333.333333 | G25: kr.
B26: Administrationbygninger | C26: 2014 | D26: 75 | E26: 1500000 | F26: 20000 | G26: kr.
B27: Ø 200 mm < Ledningsnet = Ø 500 mm | C27: 2015 | D27: 75 | E27: 8600 | F27: 114.6666667 | G27: kr.
B28: Pumpestationer i brønde (< 6,25 m2), Mek/EL | C28: 2015 | D28: 20 | E28: 270000 | F28: 13500 | G28: kr.
B29: Pumpestationer i brønde (< 6,25 m2), SRO | C29: 2015 | D29: 10 | E29: 270000 | F29: 27000 | G29: kr.
B30: Stik | C30: 2015 | D30: 75 | E30: 1000000 | F30: 13333.33333 | G30: kr.
B31: Ø 500 mm < Ledningsnet = Ø 800 mm | C31: 2015 | D31: 75 | E31: 10000000 | F31: 133333.3333 | G31: kr.
B32: Administrationbygninger | C32: 2015 | D32: 75 | E32: 860000 | F32: 11466.66667 | G32: kr.
B33: Installationer "mekaniske riste og SRO" Miljøklasse A. (7-20 m2) - SRO | C33: 2015 | D33: 10 | E33: 500000 | F33: 50000 | G33: kr.
B34: Kælder (< 7 m2) | C34: 2015 | D34: 75 | E34: 3200000 | F34: 42666.66667 | G34: kr.
B35: Tillæg for 2014 | F35: =SUMIF(C8:C34,"2014",F8:F34) -> 1177420 | G35: kr.
B36: Tillæg for 2015 | F36: =SUMIF(C8:C34,"2015",F8:F34) -> 291414.6667 | G36: kr.
B37: Tillæg i alt | F37: =F35+F36 -> 1468834.667 | G37: kr.

Sheet 8. 1-1 omkostninger
A1: ='7. Planlagte investeringer'!A1 -> Afløb Ballerup A/S
B4: Fane 8. 1:1 omkostninger
B6: Tillæg for budgetterede 1:1 omkostninger i 2015
B7: Betaling til Forsyningssekretariatet | C7: 33000 | D7: kr.
B8: Spildevandsafgift | C8: 4000 | D8: kr.
B9: Køb af varer og tjenesteydelser hos et andet prisloftreguleret vandselskab | C9: 21500000 | D9: kr.
B10: Betaling af selskabsskatter | C10: 2800000 | D10: kr.
B11: Tjenestemandspensioner | C11: 94184 | D11: kr.
B12: Ejendomsskatter | C12: 450000 | D12: kr.
B13: Tillæg i alt | C13: =SUM(C7:C12) -> 24881184 | D13: kr.
B16: Tillæg for budgetterede nødvendige udgifter til revisorerklæringer samt ordinært medlemskab af DANVA og FVD i 2015
B17: Betaling for ordinært medlemskab af DANVA/FVD | C17: 60000 | D17: kr.
B18: Betaling for revisorerklæringer | C18: 45000 | D18: kr.
B19: Tillæg i alt | C19: =SUM(C17:C18) -> 105000 | D19: kr.
B22: Korrektion af tillæg for faktiske 1:1 omkostninger (inkl. revisorerklæringer og ordinært medlemskab af DANVA/FVD) i 2013
B23: Selskabets faktiske 1:1 omkostninger mv. i 2013, jf. reguleringsregnskabet | C23: 20501781 | D23: kr.
B24: Tillæg for budgetterede 1:1 omkostninger mv. i prisloft 2013 | C24: 23825000 | D24: kr.
B25: Korrektion af tillæg for budgetterede 1:1 omkostninger mv. i 2013 | C25: =C23-C24 -> -3323219 | D25: kr.

Sheet 9. Miljø- og servicemål
A1: ='8. 1-1 omkostninger'!A1 -> Afløb Ballerup A/S
B4: Fane 9. Driftsomkostninger til miljø- og servicemål
B6: Tillæg for budgetterede driftsomkostninger til miljø- og servicemål i 2015
C7: 0 | D7: kr.
B8: Tillæg i alt | C8: =SUM(C7:C7) -> 0 | D8: kr.
B11: Korrektion af tillæg for faktiske driftsomkostninger til miljø- og servicemål i 2013
B12: Selskabets faktiske driftsomkostninger til miljø- og servicemål i 2013, jf. reguleringsregnskabet | C12: 0 | D12: kr.
B13: Tillæg for budgetterede driftsomkostninger til miljø- og servicemål i prisloft 2013 | C13: 0 | D13: kr.
B14: Korrektion af tillæg for budgetterede driftsomkostninger til miljø- og servicemål i 2013 | C14: =C12-C13 -> 0 | D14: kr.

Sheet 10. Klimatilpasning
A1: ='9. Miljø- og servicemål'!A1 -> Afløb Ballerup A/S
B4: Fane 10. Medfinansiering af klimatilpasningsprojekter
B7: Tillæg for budgetterede omkostninger til medfinansiering af klimatilpasningsprojekter i 2015
C8: 0 | D8: kr.
B9: Tillæg i alt | C9: =SUM(C8:C8) -> 0 | D9: kr.
B12: Korrektion af tillæg for faktiske omkostninger til medfinansiering af klimatilpasningsprojekter i 2013
B13: Selskabets faktiske driftsomkostninger til klimatilpasningsprojekter i 2013, jf. reguleringsregnskabet | C13: 376632 | D13: kr.
B14: Tillæg for budgetterede driftsomkostninger til klimatilpasningsprojekter i prisloft 2013 | C14: 703000 | D14: kr.
B15: Korrektion af tillæg for budgetterede omkostninger til klimatilpasningsprojekter i 2013 | C15: =C13-C14 -> -326368 | D15: kr.

Sheet 11. Nettofinansielle poster
A1: ='10. Klimatilpasning'!A1 -> Afløb Ballerup A/S
B4: Fane 11. Nettofinansielle poster
B6: Tillæg for budgetterede nettofinansielle poster i 2015
B7: Budgetterede renteudgifter og gebyrer i 2015 | C7: 1000000 | D7: kr.
B8: Budgetterede renteindtægter i 2015 | C8: 2500000 | D8: kr.
B9: Tillæg/fradrag i alt | C9: =C7-C8 -> -1500000 | D9: kr.
B12: Korrektion af tillæg for faktiske nettofinansielle poster i 2013
B13: Selskabets faktiske nettofinansielle poster i 2013, jf. reguleringsregnskabet | C13: -1448323 | D13: kr.
B14: Tillæg for budgetterede nettofinansielle poster i prisloft 2013 | C14: -618000 | D14: kr.
B15: Korrektion af tillæg for budgetterede nettofinansielle poster i 2013 | C15: =C13-C14 -> -830323 | D15: kr.

Sheet 12. Over- eller underdækning
A1: ='11. Nettofinansielle poster'!A1 -> Afløb Ballerup A/S
B4: Fane 12. Over- eller underdækning til og med 2010
B6: Tillæg/fradrag for over- eller underdækning til og med 2010
B7: Opgjort over- eller underdækning per 31. december 2010 | C7: -33107380 | D7: kr.
B8: Heraf beløb indregnet i prislofterne for 2011 - 2014 | C8: -13408423.33 | D8: kr.
B9: Endnu ikke indregnet over- eller underdækning | C9: =C7-C8 -> -19698956.67 | D9: kr.
B10: Resterende indregningsperiode (fastsat i prisloftet for 2012) | C10: 6 | D10: år
B11: Tillæg/fradrag i alt | C11: =IF(C7=0,0,C9/C10) -> -3283159.444 | D11: kr.

Sheet 13. Kontrol med indtægtsrammen
A1: ='12. Over- eller underdækning'!A1 -> Afløb Ballerup A/S
B4: Fane 13. Korrektion for overholdelse af indtægtsrammen i prisloftet for 2013
B6: Samlet opgørelse vedrørende overholdelse af indtægtsrammen i prisloftet for 2013
B7: Indtægtsramme i prisloftet for 2013 | E7: 75142799.23 | F7: kr.
B8: Ikke anvendt likviditet vedrørende investeringer i 2013
B9: Tillæg for historiske investeringer | C9: 23881569.92 | D9: kr.
B10: Tillæg for gennemførte investeringer i 2011 | C10: 560588 | D10: kr.
B11: Korrektion af tillæg for planlagte investeringer i 2011 | C11: -42117 | D11: kr.
B12: Tillæg for planlagte investeringer i 2012 og 2013 | C12: 1239667 | D12: kr.
B13: Indtægter fra tilslutningsbidrag | C13: 2109548 | D13: kr.
B14: Indtægter fra salg af anlægsaktiver | C14: 0 | D14: kr.
B15: Erstatninger vedr. anlægsaktiver mv. | C15: 0 | D15: kr.
B16: Ekstraordinær effektiviseringsgevinst anvendt til investeringer | C16: 0 | D16: kr.
B17: Udgifter til investeringer | C17: -27749256 | D17: kr.
B18: Ikke anvendt likviditet vedr. investeringer i alt | C18: =SUM(C9:C17) -> -0.07913649827 | D18: kr. | E18: =IF(C18<0,0,-C18) -> 0 | F18: kr.
B19: Ekstraordinære effektiviseringsgevinster anvendt til takstnedsættelse
B20: Ekstraordinær effektiviseringsgevinst anvendt til takstnedsættelse | C20: 0 | D20: kr. | E20: =-C20 -> 0 | F20: kr.
B21: Korrektion af ikke opkrævet tillæg fra 2011 i prisloft 2013
B22: Korrektion af ikke opkrævet tillæg fra 2011 i prisloft 2013 | C22: 0 | D22: kr. | E22: =-C22 -> 0 | F22: kr.
B23: Indtægter fra primære aktiviteter mv.
B24: Indtægter fra kubikmetertakster, faste takster, særbidrag, målergebyrer samt andre takster og gebyrer | C24: 75775770 | D24: kr.
B25: Andre indtægter i prisloftåret, som selskabet har opnået i forbindelse med eller som følge af selskabets primære aktiviteter | C25: 0 | D25: kr.
B26: Indtægter fra primære aktiviteter mv. i alt | C26: =SUM(C24:C25) -> 75775770 | D26: kr. | E26: =-C26 -> -75775770 | F26: kr.
B27: Tillæg/fradrag i prisloftet for 2015 i alt | E27: =E7+E18+E20+E22+E26 -> -632970.7673 | F27: kr.
B31: Oversigt over ekstraordinære effektiviseringsgevinster
C33: 2012 | E33: 2013 | G33: 2014 | I33: 2015 | K33: 2016
B34: Indhentet ekstraordinær effektiviseringsgevinst | C34: 56411 | D34: kr. | E34: 0 | F34: kr. | H34: kr. | J34: kr. | L34: kr.
B35: Gevinst anvendt til investeringer | C35: 56411 | D35: kr. | E35: 0 | F35: kr. | H35: kr. | J35: kr. | L35: kr.
B36: Gevinst anvendt til takstnedsættelse | C36: 0 | D36: kr. | E36: 0 | F36: kr. | H36: kr. | J36: kr. | L36: kr.
B37: Korrektion for effektiviseringsgevinst der ikke er anvendt inden 4 år | C37: 0 | D37: kr. | E37: 0 | F37: kr. | H37: kr. | J37: kr. | K37: =IF(C38>SUM(E35:I36),C38-SUM(E35:I36),0)*-1 -> 0 | L37: kr.
B38: Resterende gevinst | C38: =C34-C35-C36 -> 0 | D38: kr. | E38: =C38+E34-E35-E36 -> 0 | F38: kr. | G38: =E38+G34-G35-G36 -> 0 | H38: kr. | I38: =G38+I34-I35-I36 -> 0 | J38: kr. | K38: =K34-K35-K36+K37+I38 -> 0 | L38: kr.
